bitfinex/quotes_SOLUSD_20250811
["timestamp","ask_amount","ask_price","bid_price","bid_amount"]
[1754927426563,0.03,179.76,179.75,129.88404241]
[1754927426778,0.03,179.76,179.75,41.72771418]
[1754927426946,0.03,179.76,179.75,81.54771418]
[1754927427146,0.03,179.76,179.75,66.53]
[1754927427358,0.03,179.76,179.75,75.98443185]
[1754927427557,0.03,179.76,179.75,36.16443185]
[1754927427772,0.03,179.76,179.75,75.98443185]
[1754927428666,0.03,179.76,179.75,81.54771418]
[1754927429775,0.03,179.76,179.75,75.98443185]
[1754927430553,0.03,179.76,179.75,97.21025798]
[1754927430751,0.03,179.76,179.75,106.66468983]
[1754927431070,0.03,179.77,179.75,106.66468983]
[1754927431071,0.03,179.77,179.76,15.10621557]
[1754927431382,0.03,179.78,179.76,34.69507927]
[1754927431582,0.03,179.78,179.77,76.49069819]
[1754927431749,0.03,179.8,179.79,15.10621557]
[1754927431957,0.03,179.8,179.79,64.36064742]
[1754927432262,0.03,179.8,179.79,65.59685188]
[1754927432905,0.03,179.8,179.79,75.69840885]
[1754927433075,0.03,179.8,179.79,163.29840885]
[1754927433377,0.03,179.83,179.81,50.56064742]
[1754927433689,0.03,179.83,179.82,15.10621557]
[1754927433973,0.03,179.85,179.84,41.10621557]
[1754927434190,0.03,179.85,179.84,81.46226539]
[1754927434391,0.03,179.85,179.84,41.10621557]
[1754927434554,0.03,179.85,179.84,9.45443185]
[1754927434759,0.03,179.85,179.84,49.25443185]
[1754927434970,0.03,179.85,179.84,39.8]
[1754927435172,0.03,179.85,179.79,15.78621557]
[1754927435477,0.03,179.85,179.84,9.45443185]
[1754927435778,0.03,179.85,179.84,64.36064742]
[1754927435957,0.03,179.85,179.84,65.04064742]
[1754927436279,0.03,179.85,179.84,9.45443185]
[1754927436466,0.03,179.85,179.78,6.24229834]
[1754927436675,5.56080742,179.83,179.79,39.9]
[1754927436886,5.56080742,179.83,179.75,0.68]
[1754927436887,10.16443185,179.82,179.75,0.68]
[1754927437070,0.71,179.82,179.78,9.45443185]
[1754927437392,9.45443185,179.8,179.72,0.68]
[1754927437556,9.45443185,179.79,179.75,15.10621557]
[1754927437762,0.71,179.78,179.76,39.94]
[1754927437962,5.56080742,179.83,179.76,39.94]
[1754927438161,0.71,179.82,179.76,39.94]
[1754927438382,9.45443185,179.8,179.76,39.94]
[1754927438573,0.71,179.79,179.76,39.94]
[1754927438872,0.71,179.81,179.77,9.45443185]
[1754927439072,0.71,179.81,179.78,39.94]
[1754927439276,0.71,179.8,179.78,39.94]
[1754927439689,9.45443185,179.81,179.78,39.94]
[1754927439881,0.71,179.82,179.79,0.06]
[1754927440083,9.45443185,179.81,179.79,0.06]
[1754927440263,0.71,179.8,179.79,0.06]
[1754927440994,10.16443185,179.8,179.79,0.06]
[1754927441203,10.16443185,179.8,179.79,40.02]
[1754927441494,15.72616711,179.8,179.79,40.02]
[1754927442768,15.72616711,179.8,179.79,0.06]
[1754927443183,26.0,179.78,179.77,0.06]
[1754927443505,35.45443185,179.78,179.77,0.06]
[1754927443680,36.16443185,179.78,179.77,0.06]
[1754927444095,9.45443185,179.75,179.7,0.06]
[1754927444299,9.45443185,179.72,179.71,39.96]
[1754927444502,9.45443185,179.73,179.71,39.96]
[1754927444714,10.16443185,179.73,179.71,39.96]
[1754927444912,0.71,179.72,179.71,39.96]
[1754927445214,9.45443185,179.73,179.71,39.96]
[1754927445895,10.16443185,179.72,179.71,39.96]
[1754927446199,10.16443185,179.72,179.7,0.06]
[1754927446401,9.45443185,179.71,179.7,0.06]
[1754927446582,9.45443185,179.72,179.7,0.06]
[1754927446778,9.45443185,179.71,179.7,0.06]
[1754927447211,15.01870469,179.72,179.7,0.06]
[1754927447410,9.45443185,179.71,179.7,0.06]
[1754927447775,10.16443185,179.71,179.7,0.06]
[1754927448892,6.27452061,179.71,179.7,0.06]
[1754927449280,15.01895246,179.71,179.7,0.06]
[1754927449616,9.45443185,179.71,179.7,0.06]
[1754927450485,10.16443185,179.71,179.7,0.06]
[1754927450890,15.01895246,179.71,179.7,0.06]
[1754927451393,5.56452061,179.71,179.7,0.06]
[1754927451596,5.5639014,179.73,179.7,0.06]
[1754927452810,5.5639014,179.73,179.7,9.51443185]
[1754927453009,5.56359185,179.74,179.7,10.19443185]
[1754927453224,6.27359185,179.74,179.71,40.04]
[1754927453429,9.45443185,179.73,179.71,40.04]
[1754927453632,0.71,179.73,179.71,40.04]
[1754927453802,10.16443185,179.73,179.71,40.04]
[1754927454005,10.16443185,179.72,179.71,40.04]
[1754927454229,10.16443185,179.72,179.7,0.06]
[1754927454429,9.45443185,179.71,179.7,0.06]
[1754927454631,20.18257148,179.74,179.7,0.06]
[1754927454816,9.45443185,179.73,179.7,0.06]
[1754927455124,20.18257148,179.74,179.7,0.06]
[1754927455125,15.0180237,179.74,179.7,0.06]
[1754927455331,9.45443185,179.72,179.7,0.06]
[1754927455535,0.71,179.73,179.7,0.06]
[1754927455738,15.0180237,179.74,179.7,9.51443185]
[1754927455908,5.56359185,179.74,179.71,0.68]
[1754927456108,19.2940314,179.81,179.73,9.45443185]
[1754927456307,19.2940314,179.81,179.75,9.45443185]
[1754927456308,9.45443185,179.8,179.75,9.45443185]
[1754927456531,10.16443185,179.8,179.75,9.45443185]
[1754927456922,0.71,179.8,179.75,9.45443185]
[1754927457113,9.45443185,179.79,179.72,40.08]
[1754927457322,9.45443185,179.78,179.74,9.45443185]
[1754927457550,10.16443185,179.78,179.74,9.45443185]
[1754927457747,0.71,179.78,179.74,9.45443185]
[1754927458050,26.0,179.81,179.77,9.45443185]
[1754927458214,15.72554852,179.82,179.78,9.45443185]
[1754927458510,9.45443185,179.81,179.76,40.12]
[1754927458710,9.45443185,179.77,179.7,0.06]
[1754927458933,26.0,179.75,179.7,0.06]
[1754927459138,15.01895246,179.71,179.7,0.06]
[1754927459340,5.56452061,179.71,179.7,0.06]
[1754927460154,145.56367381,179.74,179.7,9.51443185]
[1754927460349,15.01810566,179.74,179.7,9.51443185]
[1754927460516,15.01810566,179.74,179.7,0.06]
[1754927460717,15.01810566,179.74,179.7,9.51443185]
[1754927461325,5.56367381,179.74,179.7,0.06]
[1754927461640,9.45443185,179.72,179.7,0.06]
[1754927462843,5.5632959,179.75,179.7,0.06]
[1754927463144,0.7,179.76,179.74,9.45443185]
[1754927463353,0.7,179.76,179.75,9.45443185]
[1754927464922,0.7,179.76,179.75,24.56064742]
[1754927465350,0.7,179.76,179.75,30.12392975]
[1754927465646,0.7,179.76,179.75,66.13468983]
[1754927465849,0.03,179.77,179.76,15.10621557]
[1754927466045,0.03,179.77,179.76,74.29507927]
[1754927466220,0.03,179.77,179.76,64.84064742]
[1754927467039,0.03,179.77,179.76,49.73443185]
[1754927467540,0.03,179.77,179.76,55.2974047]
[1754927468641,0.03,179.77,179.76,70.40362027]
[1754927469740,0.03,179.77,179.76,72.63048227]
[1754927470858,0.03,179.77,179.76,51.90129385]
[1754927471041,0.03,179.77,179.76,42.446862]
[1754927471354,0.03,179.77,179.76,40.22]
[1754927473453,0.03,179.77,179.76,49.67443185]
[1754927473756,0.03,179.77,179.76,40.22]
[1754927475259,9.48443185,179.77,179.74,40.24]
[1754927475946,9.45443185,179.75,179.74,40.24]
[1754927476343,0.03,179.77,179.74,40.24]
[1754927476649,9.45443185,179.75,179.74,40.24]
[1754927477457,9.45443185,179.75,179.7,0.06]
[1754927477662,9.45443185,179.74,179.71,40.24]
[1754927477969,9.45443185,179.75,179.71,40.24]
[1754927478754,9.45443185,179.75,179.71,49.69443185]
[1754927478955,9.45443185,179.76,179.72,9.45443185]
[1754927479143,0.03,179.77,179.71,40.24]
[1754927479344,9.45443185,179.76,179.71,40.24]
[1754927479546,9.45443185,179.76,179.71,49.69443185]
[1754927479742,149.45443185,179.76,179.71,49.69443185]
[1754927480475,9.45443185,179.75,179.71,49.69443185]
[1754927480840,5.56359185,179.74,179.71,40.24]
[1754927481157,5.56359185,179.74,179.71,49.69443185]
[1754927481347,15.01781043,179.75,179.71,40.24]
[1754927481553,15.01781043,179.75,179.71,49.69443185]
[1754927481740,15.01781043,179.75,179.71,40.24]
[1754927481942,15.01781043,179.75,179.71,49.69443185]
[1754927482137,5.56337858,179.75,179.72,9.45443185]
[1754927482344,0.03,179.77,179.74,9.45443185]
[1754927482549,0.03,179.77,179.76,9.45443185]
[1754927483643,0.03,179.77,179.75,49.63443185]
[1754927484261,0.03,179.77,179.73,9.45443185]
[1754927484468,9.45443185,179.76,179.74,40.18]
[1754927484868,15.01771418,179.75,179.7,0.06]
[1754927485060,15.01771418,179.75,179.71,40.18]
[1754927485372,5.56328233,179.75,179.71,49.63443185]
[1754927485573,15.01771418,179.75,179.71,40.18]
[1754927487070,9.45443185,179.73,179.71,40.18]
[1754927487266,5.56328233,179.75,179.71,40.18]
[1754927487487,9.45443185,179.74,179.71,40.18]
[1754927487970,9.45443185,179.73,179.71,40.18]
[1754927488172,9.45443185,179.72,179.71,40.18]
[1754927488742,9.45443185,179.73,179.71,40.18]
[1754927489060,5.56405141,179.73,179.71,40.18]
[1754927489378,5.56328233,179.75,179.71,40.18]
[1754927489672,15.01771418,179.75,179.71,40.18]
[1754927489971,9.45443185,179.74,179.71,40.18]
[1754927490966,5.56405967,179.73,179.71,40.18]
[1754927491149,0.03,179.77,179.71,40.18]
[1754927491350,15.0174047,179.76,179.71,40.18]
[1754927491553,9.45443185,179.74,179.71,40.18]
[1754927491971,9.45443185,179.73,179.71,40.18]
[1754927492342,9.45443185,179.74,179.71,40.18]
[1754927492942,9.45443185,179.73,179.71,40.18]
[1754927493369,9.45443185,179.72,179.71,40.18]
[1754927493676,9.45443185,179.73,179.71,40.18]
[1754927493974,15.0180237,179.74,179.71,40.18]
[1754927494471,9.45443185,179.73,179.71,40.18]
[1754927495274,15.01864284,179.72,179.71,40.18]
[1754927495467,15.01864284,179.72,179.7,0.06]
[1754927495882,5.56421099,179.72,179.7,0.06]
[1754927496172,26.0,179.76,179.7,0.06]
[1754927496373,4.15295212,179.75,179.72,9.45443185]
[1754927496548,5.59267113,179.77,179.74,9.45443185]
[1754927496750,5.59267113,179.77,179.75,9.45443185]
[1754927497266,0.03,179.77,179.74,40.22]
[1754927497472,0.03,179.77,179.74,49.67443185]
[1754927498284,0.03,179.77,179.74,40.22]
[1754927498453,0.03,179.77,179.74,49.67443185]
[1754927499651,0.03,179.77,179.74,40.22]
[1754927499963,0.03,179.77,179.74,49.67443185]
[1754927500554,0.03,179.77,179.74,40.22]
[1754927501176,19.47257148,179.74,179.7,0.06]
[1754927501376,9.45443185,179.71,179.7,0.06]
[1754927502055,19.47257148,179.74,179.7,0.06]
[1754927502254,4.15417236,179.73,179.7,0.06]
[1754927503272,9.45443185,179.72,179.7,0.06]
[1754927503648,9.45443185,179.71,179.7,0.06]
[1754927504070,9.45443185,179.72,179.7,0.06]
[1754927505054,9.45443185,179.72,179.71,0.06]
[1754927505258,15.01864284,179.72,179.71,0.06]
[1754927505680,5.56421099,179.72,179.71,0.06]
[1754927505978,15.01864284,179.72,179.71,0.06]
[1754927506379,5.56421099,179.72,179.71,0.06]
[1754927507091,13.90743213,179.76,179.71,9.51443185]
[1754927507260,19.47040498,179.76,179.71,0.06]
[1754927507464,28.92483683,179.76,179.71,0.06]
[1754927507704,19.47040498,179.76,179.72,9.45443185]
[1754927507899,28.92483683,179.76,179.72,9.45443185]
[1754927508058,5.56297285,179.76,179.74,9.45443185]
[1754927508481,5.56297285,179.76,179.74,49.63443185]
[1754927508669,5.59275269,179.77,179.75,9.45443185]
[1754927508870,15.04718454,179.77,179.74,40.18]
[1754927509073,9.45443185,179.75,179.74,40.18]
[1754927509364,5.56328233,179.75,179.72,9.45443185]
[1754927509563,0.03,179.77,179.74,9.45443185]
[1754927509789,5.5926634,179.77,179.76,9.45443185]
[1754927509969,0.03,179.77,179.76,9.45443185]
[1754927510584,5.59268514,179.77,179.74,40.22]
[1754927510887,0.03,179.77,179.75,9.45443185]
[1754927511296,0.03,179.77,179.76,9.45443185]
[1754927512985,0.03,179.77,179.76,15.0174047]
[1754927513768,0.03,179.77,179.76,5.56297285]
[1754927513969,0.03,179.77,179.76,15.0174047]
[1754927514188,0.03,179.77,179.76,30.67991755]
[1754927514772,0.03,179.77,179.76,40.1343494]
[1754927515284,0.03,179.77,179.76,127.7343494]
[1754927515477,0.03,179.77,179.76,39.57805212]
[1754927515681,0.03,179.77,179.76,40.1343494]
[1754927516288,0.03,179.77,179.76,96.26362027]
[1754927516476,0.03,179.77,179.76,90.70064742]
[1754927516789,0.03,179.77,179.76,96.26362027]
[1754927516972,0.03,179.77,179.76,90.70064742]
[1754927517373,0.03,179.77,179.76,75.59443185]
[1754927517806,0.03,179.77,179.76,81.1574047]
[1754927518295,0.03,179.77,179.76,96.26362027]
[1754927518609,0.03,179.77,179.76,106.2743494]
[1754927518902,0.03,179.77,179.76,82.5009624]
[1754927519901,0.03,179.77,179.76,63.5920987]
[1754927520199,0.03,179.77,179.76,82.5009624]
[1754927520693,0.03,179.79,179.78,41.10621557]
[1754927520897,0.03,179.81,179.79,15.10621557]
[1754927521078,0.03,179.83,179.81,15.10621557]
[1754927521266,0.03,179.83,179.82,36.01054351]
[1754927521598,0.03,179.83,179.82,90.76064742]
[1754927521913,0.03,179.83,179.82,96.32176409]
[1754927522071,0.03,179.83,179.82,86.86733224]
[1754927522271,0.03,179.83,179.82,96.32176409]
[1754927522488,0.03,179.83,179.82,96.87787575]
[1754927522693,0.03,179.83,179.82,87.4234439]
[1754927522965,0.03,179.83,179.82,90.76064742]
[1754927523274,0.03,179.83,179.82,75.65443185]
[1754927523578,0.03,179.83,179.82,49.65443185]
[1754927524297,0.03,179.83,179.82,40.2]
[1754927524596,0.03,179.83,179.82,49.65443185]
[1754927525185,0.03,179.83,179.82,55.21554852]
[1754927525385,0.03,179.83,179.82,49.65443185]
[1754927527487,0.03,179.83,179.82,50.35443185]
[1754927527874,0.03,179.83,179.81,5.62142154]
[1754927528187,0.03,179.83,179.81,0.06]
[1754927528388,0.71,179.83,179.82,40.3]
[1754927528705,0.03,179.83,179.82,49.75443185]
[1754927528877,0.03,179.83,179.82,40.3]
[1754927531591,0.03,179.83,179.81,0.06]
[1754927531782,0.71,179.83,179.82,40.32]
[1754927531986,0.03,179.83,179.82,49.77443185]
[1754927534310,0.03,179.83,179.82,41.02]
[1754927534520,0.03,179.83,179.82,50.47443185]
[1754927534699,0.03,179.83,179.82,49.77443185]
[1754927535311,0.03,179.83,179.82,50.47443185]
[1754927535826,0.03,179.83,179.82,56.03554852]
[1754927536182,0.03,179.83,179.82,5.90526137]
[1754927536381,0.03,179.83,179.82,46.22526137]
[1754927537698,0.03,179.83,179.82,40.32]
[1754927538811,0.03,179.83,179.82,41.02]
[1754927538982,0.03,179.83,179.82,40.32]
[1754927541393,0.03,179.83,179.81,0.06]
[1754927541394,6.61526137,179.83,179.81,0.06]
[1754927541686,6.61526137,179.83,179.81,40.32]
[1754927541687,0.03,179.83,179.81,40.32]
[1754927541893,0.03,179.83,179.82,6.60526137]
[1754927542099,0.03,179.83,179.82,0.7]
[1754927542317,0.03,179.83,179.82,6.60526137]
[1754927542805,0.03,179.83,179.82,0.7]
[1754927543005,0.03,179.83,179.82,22.2675886]
[1754927543409,0.03,179.83,179.82,27.82870527]
[1754927543601,0.03,179.84,179.82,27.82870527]
[1754927543810,0.03,179.84,179.83,46.88526137]
[1754927544320,0.03,179.84,179.83,46.18526137]
[1754927544519,0.03,179.84,179.83,46.88526137]
[1754927544895,0.03,179.84,179.83,52.44606879]
[1754927547115,0.03,179.84,179.83,6.60526137]
[1754927547320,0.03,179.84,179.83,46.14526137]
[1754927547530,0.03,179.84,179.83,56.04621557]
[1754927547710,0.03,179.84,179.83,61.95147694]
[1754927548616,0.03,179.84,179.83,61.25147694]
[1754927548926,0.03,179.84,179.83,61.23147694]
[1754927549829,0.03,179.84,179.83,21.01147694]
[1754927550123,0.03,179.84,179.83,61.23147694]
[1754927550327,0.03,179.84,179.83,46.12526137]
[1754927550513,0.03,179.84,179.83,40.22]
[1754927550831,0.03,179.84,179.82,5.90526137]
[1754927550832,0.03,179.84,179.81,0.06]
[1754927550833,0.71,179.84,179.81,0.06]
[1754927551048,0.68,179.83,179.82,40.24]
[1754927551205,6.58526137,179.83,179.82,40.24]
[1754927551409,12.14606879,179.83,179.82,40.24]
[1754927553218,12.14606879,179.83,179.81,0.06]
[1754927553538,12.14637804,179.82,179.81,0.06]
[1754927553717,11.46637804,179.82,179.81,0.06]
[1754927554029,12.14637804,179.82,179.81,0.06]
[1754927554229,5.56111667,179.82,179.81,0.06]
[1754927554410,5.56084955,179.83,179.81,0.06]
[1754927555215,0.03,179.84,179.82,5.90526137]
[1754927555432,0.03,179.84,179.82,46.16526137]
[1754927555943,0.03,179.84,179.83,6.61526137]
[1754927556314,0.03,179.84,179.83,10.15696221]
[1754927557731,0.03,179.84,179.83,15.71776963]
[1754927558822,0.03,179.84,179.83,6.27080742]
[1754927559139,0.03,179.84,179.83,15.71776963]
[1754927559323,0.03,179.84,179.82,40.26]
[1754927559520,0.03,179.84,179.83,9.44696221]
[1754927560334,0.03,179.84,179.83,10.15696221]
[1754927561010,0.03,179.84,179.83,15.71776963]
[1754927561822,0.03,179.84,179.83,15.00776963]
[1754927562511,0.03,179.84,179.83,15.71776963]
[1754927562712,0.03,179.84,179.83,30.8239852]
[1754927564443,0.03,179.84,179.83,49.70696221]
[1754927565016,0.03,179.84,179.83,55.26776963]
[1754927565216,0.03,179.84,179.83,49.70696221]
[1754927566228,0.03,179.84,179.83,40.26]
[1754927570024,0.03,179.84,179.83,49.70696221]
[1754927570336,0.03,179.84,179.83,40.26]
[1754927570526,0.03,179.84,179.83,49.70696221]
[1754927570728,0.03,179.84,179.83,50.41696221]
[1754927571348,0.03,179.84,179.83,40.26]
[1754927572531,0.03,179.84,179.83,50.41696221]
[1754927572830,0.03,179.84,179.83,49.70696221]
[1754927573151,0.03,179.84,179.83,50.41696221]
[1754927574356,0.03,179.84,179.83,40.26]
[1754927574536,0.71,179.84,179.83,40.26]
[1754927575159,0.03,179.84,179.83,40.26]
[1754927575639,0.71,179.84,179.83,40.26]
[1754927576628,6.27049822,179.84,179.83,40.26]
[1754927577128,15.71746043,179.84,179.81,0.06]
[1754927577330,15.71746043,179.84,179.82,40.16]
[1754927578072,5.59049822,179.84,179.82,40.16]
[1754927579147,0.03,179.84,179.82,40.16]
[1754927579359,0.03,179.84,179.83,6.57751222]
[1754927580140,0.03,179.84,179.83,5.90751222]
[1754927580362,0.03,179.84,179.82,40.16]
[1754927581072,0.03,179.84,179.82,40.83]
[1754927581258,0.03,179.84,179.82,46.73751222]
[1754927581968,0.03,179.84,179.82,40.83]
[1754927582270,0.03,179.84,179.82,46.06751222]
[1754927582445,0.03,179.84,179.83,6.57751222]
[1754927583457,0.03,179.84,179.83,0.67]
[1754927583752,0.03,179.84,179.83,6.57751222]
[1754927584578,0.03,179.84,179.83,12.13831964]
[1754927585757,0.03,179.84,179.83,0.67]
[1754927585960,0.03,179.84,179.83,6.57751222]
[1754927586774,0.03,179.84,179.82,40.16]
[1754927586960,0.03,179.84,179.83,5.90751222]
[1754927587161,0.03,179.84,179.82,40.83]
[1754927587369,0.03,179.84,179.83,5.90751222]
[1754927588960,0.03,179.84,179.83,6.57751222]
[1754927589978,0.03,179.84,179.83,12.13831964]
[1754927590278,0.03,179.84,179.83,6.57751222]
[1754927591181,0.03,179.84,179.83,5.90751222]
[1754927591480,0.03,179.84,179.83,5.96751222]
[1754927592153,0.03,179.84,179.83,12.19831964]
[1754927592350,0.03,179.84,179.83,6.29080742]
[1754927592569,0.03,179.84,179.83,6.63751222]
[1754927592773,0.03,179.84,179.83,0.73]
[1754927592960,0.03,179.84,179.83,5.96751222]
[1754927593363,0.03,179.84,179.83,0.06]
[1754927593578,0.03,179.84,179.83,40.12]
[1754927594082,0.03,179.84,179.83,46.02751222]
[1754927594375,0.03,179.84,179.83,46.69751222]
[1754927595280,0.03,179.84,179.83,46.02751222]
[1754927595462,0.03,179.84,179.83,40.12]
[1754927596284,0.03,179.84,179.83,46.02751222]
[1754927596481,0.03,179.84,179.83,0.06]
[1754927596779,6.63751222,179.84,179.83,0.06]
[1754927596986,0.73,179.84,179.83,0.06]
[1754927597287,6.63751222,179.84,179.83,0.06]
[1754927597470,6.29049822,179.84,179.83,0.06]
[1754927597781,12.19801044,179.84,179.83,0.06]
[1754927599586,156.36084324,179.84,179.83,0.06]
[1754927600265,161.01368151,179.84,179.83,1e-08]
[1754927601784,156.36084324,179.84,179.83,1e-08]
[1754927601976,150.45333102,179.84,179.83,1e-08]
[1754927602179,156.36084324,179.84,179.83,1e-08]
[1754927604977,26.0,179.82,179.81,1e-08]
[1754927605284,14.7477213,179.82,179.81,1e-08]
[1754927605491,10.77034502,179.82,179.81,1e-08]
[1754927606079,16.33146169,179.82,179.81,1e-08]
[1754927606395,16.324691,179.82,179.81,1e-08]
[1754927606889,41.624691,179.82,179.81,1e-08]
[1754927607186,35.71717878,179.82,179.81,1e-08]
[1754927607368,41.62221708,179.82,179.81,1e-08]
[1754927607769,37.46862889,179.82,179.81,1e-08]
[1754927608091,42.32228055,179.82,179.81,1e-08]
[1754927608281,41.62228055,179.82,179.81,1e-08]
[1754927608485,37.46862889,179.82,179.81,1e-08]
[1754927608991,5.56088579,179.83,179.81,6.61751223]
[1754927609292,0.03,179.84,179.82,0.71]
[1754927609489,0.03,179.84,179.82,6.61751222]
[1754927609688,0.03,179.84,179.83,0.71]
[1754927610376,0.03,179.84,179.83,6.61751222]
[1754927612496,0.03,179.84,179.83,12.17831964]
[1754927613476,0.03,179.84,179.83,6.61751222]
[1754927614974,0.03,179.84,179.83,12.17831964]
[1754927617477,0.03,179.85,179.84,15.10621557]
[1754927617680,0.03,179.85,179.84,21.72372779]
[1754927618985,0.03,179.85,179.84,27.28422601]
[1754927621797,0.03,179.85,179.84,21.72372779]
[1754927622100,0.03,179.85,179.84,6.61751222]
[1754927622282,0.03,179.85,179.84,39.94]
[1754927622484,0.03,179.85,179.84,46.55751222]
[1754927622801,0.03,179.85,179.84,45.84751222]
[1754927623002,0.03,179.85,179.84,39.94]
[1754927624199,0.03,179.85,179.82,6.61751222]
[1754927624374,0.03,179.85,179.84,39.94]
[1754927624581,0.03,179.85,179.84,46.55751222]
[1754927625502,0.03,179.85,179.84,40.65]
[1754927625796,0.03,179.85,179.84,39.94]
[1754927629608,0.69,179.85,179.81,1e-08]
[1754927629921,5.90751222,179.83,179.82,39.94]
[1754927630610,5.90751222,179.84,179.82,39.94]
[1754927631409,11.46830378,179.84,179.82,39.94]
[1754927632317,5.56079156,179.84,179.82,39.94]
[1754927632819,0.03,179.85,179.83,6.61751222]
[1754927632986,0.03,179.85,179.84,6.61751222]
[1754927636685,0.03,179.85,179.84,46.55751222]
[1754927637411,0.03,179.85,179.84,52.11801044]
[1754927638114,0.03,179.85,179.84,67.22422601]
[1754927641412,0.03,179.85,179.84,154.82422601]
[1754927644703,0.03,179.85,179.84,180.82422601]
[1754927647920,0.03,179.85,179.84,39.94]
[1754927648098,0.03,179.85,179.84,45.84751222]
[1754927648813,0.03,179.85,179.84,53.63388044]
[1754927649916,0.03,179.85,179.84,79.63388044]
[1754927650418,0.03,179.85,179.84,73.72636822]
[1754927650640,0.03,179.85,179.84,79.63388044]
[1754927651308,0.03,179.85,179.84,80.35388044]
[1754927652795,0.03,179.85,179.84,74.44636822]
[1754927652996,0.03,179.85,179.84,80.35388044]
[1754927653221,0.03,179.85,179.84,79.63388044]
[1754927654613,0.03,179.85,179.84,80.35388044]
[1754927656927,0.03,179.85,179.84,80.41388044]
[1754927657425,0.03,179.85,179.84,95.52009601]
[1754927657809,0.03,179.85,179.84,96.07614583]
[1754927659003,0.03,179.85,179.84,95.52009601]
[1754927661327,0.03,179.85,179.84,94.80009601]
[1754927661832,0.03,179.85,179.84,79.67388044]
[1754927663312,0.03,179.85,179.84,167.27388044]
[1754927663515,0.03,179.85,179.84,161.36636822]
[1754927663748,0.03,179.85,179.84,167.27388044]
[1754927664108,0.75,179.85,179.84,161.71338222]
[1754927664421,0.03,179.85,179.84,78.16801044]
[1754927664618,0.03,179.85,179.84,80.39388044]
[1754927666839,0.75,179.85,179.84,79.67388044]
[1754927667212,0.75,179.85,179.84,74.11338222]
[1754927667814,0.75,179.85,179.84,79.67388044]
[1754927668013,0.03,179.85,179.84,79.67388044]
[1754927671206,0.03,179.85,179.84,80.38388044]
[1754927672149,0.03,179.85,179.84,95.49009601]
[1754927674118,0.03,179.85,179.84,89.58258379]
[1754927674322,0.03,179.85,179.84,95.49009601]
[1754927675040,0.03,179.85,179.84,182.38009601]
[1754927675754,0.03,179.85,179.84,183.09009601]
[1754927678930,0.03,179.85,179.84,182.38009601]
[1754927679136,0.03,179.85,179.84,183.09009601]
[1754927680325,0.03,179.85,179.84,143.17009601]
[1754927680518,0.03,179.85,179.84,182.36009601]
[1754927681414,0.72,179.85,179.84,121.44636822]
[1754927681621,0.72,179.85,179.84,161.32636822]
[1754927681817,0.72,179.85,179.84,167.23388044]
[1754927685230,0.03,179.85,179.84,167.23388044]
[1754927685734,0.72,179.85,179.84,155.76587]
[1754927685933,0.72,179.85,179.84,133.44751222]
[1754927686820,0.72,179.85,179.84,45.84751222]
[1754927687427,0.03,179.85,179.84,51.40801044]
[1754927688352,0.72,179.85,179.84,51.40801044]
[1754927688829,0.03,179.85,179.84,51.40801044]
[1754927689030,0.03,179.85,179.84,45.50049822]
[1754927689231,0.72,179.85,179.84,51.40801044]
[1754927689744,0.72,179.85,179.84,45.84751222]
[1754927690631,0.03,179.85,179.84,51.40801044]